bitfinex-derivatives/quotes_ETHF0:USTF0_20210703
["timestamp","ask_amount","ask_price","bid_price","bid_amount"]
[1625353073324,1.82627,2204.4,2204.3,18.646348]
[1625353079151,5.21517,2204.4,2204.3,18.646348]
[1625353079251,5.21517,2204.4,2204.3,2.20527]
[1625353080102,5.21517,2204.4,2203.8,2.20527]
[1625353080252,7.08919772,2204.4,2203.8,2.20527]
[1625353080553,53.0297,2203.9,2203.8,2.20527]
[1625353080655,55.7227,2203.9,2203.8,2.20527]
[1625353080752,60.13324,2203.9,2203.8,2.20527]
[1625353081254,7.10354,2203.9,2203.8,2.20527]
[1625353083206,4.41054,2203.9,2203.8,2.20527]
[1625353083311,1.87599475,2204.3,2203.8,2.20527]
[1625353083459,1.87599475,2204.3,2203.8,4.80327]
[1625353083709,2.12399026,2204.7,2203.9,16.341821]
[1625353083865,9.026e-05,2204.7,2204.3,1.15]
[1625353084057,8.801e-05,2204.9,2204.3,9.5143]
[1625353084159,14.3638,2206.4,2204.3,17.5143]
[1625353084264,4.28716828,2205.5,2204.4,16.577315]
[1625353084411,4.28716828,2205.5,2204.5,8.0]
[1625353084509,4.28716828,2205.5,2204.6,5.0]
[1625353084612,5.35896035,2205.8,2204.6,13.0]
[1625353084712,5.30896035,2205.8,2204.6,29.489579]
[1625353084812,5.30896035,2205.8,2205.7,4.41054]
[1625353084912,5.30896035,2205.8,2205.7,6.89734]
[1625353085010,6.69870043,2206.0,2205.7,6.89734]
[1625353085113,2.66130043,2206.0,2205.7,23.493424]
[1625353085211,1.13410043,2206.0,2205.7,23.493424]
[1625353085311,4.16984095,2206.2,2205.7,23.493424]
[1625353085412,11.66692241,2372.0,2206.2,1.15]
[1625353085413,8.03729855,2207.5,2206.2,1.15]
[1625353085510,8.03729855,2207.5,2206.2,3.9318]
[1625353085511,4.28655923,2206.9,2206.2,3.9318]
[1625353085711,4.28655923,2206.9,2206.3,16.441167]
[1625353086367,4.28655923,2206.9,2206.8,1.15]
[1625353086463,8.02267341,2208.4,2206.8,4.1497]
[1625353086765,8.02267341,2208.4,2206.8,20.507467]
[1625353086865,2.20527,2207.4,2207.3,2.20527]
[1625353086962,2.20527,2207.4,2207.3,5.41487]
[1625353087163,2.20527,2207.4,2207.3,21.901548]
[1625353087764,2.20527,2207.4,2207.3,66.742648]
[1625353087864,2.20527,2207.4,2207.3,21.901548]
[1625353087965,2.20527,2207.4,2207.3,12.195678]
[1625353088165,2.20527,2207.4,2206.3,1.0]
[1625353088265,4.81977,2207.4,2205.5,14.8023]
[1625353088366,46.8253,2206.6,2205.5,14.8023]
[1625353088465,3.0597,2206.6,2205.5,14.8023]
[1625353088816,2.20527,2206.4,2206.3,2.20527]
[1625353089618,2.20527,2206.4,2205.5,14.8023]
[1625353090221,2.20527,2206.4,2205.6,16.378294]
[1625353090722,2.20527,2206.4,2204.8,18.5101]
[1625353090823,2.20527,2205.9,2205.7,2.20527]
[1625353091179,5.15777,2205.9,2205.7,2.20527]
[1625353091276,5.15777,2205.9,2205.8,16.548348]
[1625353091575,5.15777,2205.9,2205.4,1.15]
[1625353091975,5.15777,2205.9,2203.9,1.0]
[1625353092075,1.0,2205.8,2203.9,1.0]
[1625353092577,1.0,2205.8,2204.0,16.419765]
[1625353092926,2.20527,2205.4,2205.3,2.20527]
[1625353093126,2.20527,2205.4,2204.4,1.15]
[1625353093677,2.20527,2205.4,2204.5,16.55722]
[1625353094830,2.20527,2205.4,2204.8,2.20527]
[1625353095132,2.20527,2205.4,2204.9,16.543759]
[1625353095231,2.20527,2205.4,2204.9,19.365659]
[1625353095381,2.20527,2205.4,2205.0,1.15]
[1625353095481,1.0,2206.1,2205.0,1.15]
[1625353095581,59.7827,2207.0,2205.0,1.15]
[1625353095682,59.7827,2207.0,2205.1,16.423478]
[1625353096283,64.7827,2207.0,2205.1,16.423478]
[1625353096884,2.20527,2205.9,2205.8,2.20527]
[1625353097188,2.20527,2205.9,2205.0,1.15]
[1625353097745,2.20527,2205.9,2205.1,16.422693]
[1625353098908,4.41054,2205.9,2205.7,2.20527]
[1625353102013,4.41054,2205.9,2205.4,2.20527]
[1625353102112,4.41054,2205.9,2205.0,1.15]
[1625353102716,4.41054,2205.9,2205.1,16.546464]
[1625353102967,2.20527,2205.4,2205.1,18.751734]
[1625353103972,2.20527,2205.9,2205.1,18.751734]
[1625353104069,2.20527,2205.9,2205.1,21.480034]
[1625353104870,2.20527,2205.3,2205.1,21.480034]
[1625353110387,2.20527,2205.3,2205.1,19.274764]
[1625353110888,2.20527,2205.3,2205.2,2.20527]
[1625353111187,2.20527,2205.3,2205.2,18.664284]
[1625353112991,2.13437,2205.3,2205.2,18.664284]
[1625353116350,2.13437,2205.3,2205.2,2.20527]
[1625353116550,2.13437,2205.3,2204.9,2.20527]
[1625353116699,2.13437,2205.3,2203.4,1.0]
[1625353116801,2.13437,2205.3,2203.3,14.6436]
[1625353116902,2.20527,2204.4,2204.2,2.20527]
[1625353117219,2.20527,2204.4,2204.3,16.41308]
[1625353118112,2.20527,2204.4,2204.2,2.20527]
[1625353118267,4.94987,2204.4,2204.2,2.20527]
[1625353118364,4.94987,2204.4,2203.9,1.15]
[1625353118914,2.20527,2204.0,2203.9,1.15]
[1625353121421,2.20527,2204.0,2203.9,17.602583]
[1625353122975,2.20527,2204.0,2203.9,19.807853]
[1625353124884,2.20527,2204.4,2203.9,19.807853]
[1625353124984,2.20527,2204.4,2204.3,2.20527]
[1625353125284,2.20527,2204.4,2204.3,18.762559]
[1625353126335,2.20527,2204.7,2204.3,18.762559]
[1625353126435,2.20527,2204.7,2204.3,22.197159]
[1625353126985,2.20527,2204.7,2204.6,2.20527]
[1625353128894,2.20527,2204.7,2204.3,2.20527]
[1625353128992,2.20527,2204.4,2204.3,2.20527]
[1625353129492,2.20527,2204.4,2204.3,18.607135]
[1625353132903,2.20527,2204.7,2204.3,18.607135]
[1625353133003,2.20527,2204.7,2204.6,2.20527]
[1625353136418,2.20527,2204.7,2204.3,2.20527]
[1625353137075,2.20527,2204.7,2204.4,16.441673]
[1625353139029,2.20527,2204.7,2204.6,2.20527]
[1625353144137,2.20527,2204.7,2204.3,2.20527]
[1625353144237,5.25947,2204.7,2204.3,2.20527]
[1625353145088,2.20527,2204.4,2204.3,2.20527]
[1625353145189,2.20527,2204.4,2203.9,1.15]
[1625353145489,53.539,2204.0,2203.9,1.15]
[1625353146491,2.3101,2204.1,2203.9,1.15]
[1625353147141,2.20527,2204.0,2203.9,1.15]
[1625353147393,2.20527,2204.0,2203.9,17.753005]
[1625353151207,2.20527,2204.0,2203.9,1.15]
[1625353155324,2.20527,2204.0,2203.9,3.5233]
[1625353155675,2.20527,2204.0,2203.9,19.971359]
[1625353157580,2.20527,2204.4,2203.9,19.971359]
[1625353158537,2.20527,2204.4,2203.9,3.5233]
[1625353159136,2.20527,2204.0,2203.9,3.5233]
[1625353159338,2.20527,2204.0,2203.9,1.15]
[1625353159438,2.20527,2204.0,2203.6,2.20527]
[1625353159890,2.20527,2204.0,2202.7,1.0]
[1625353159992,2.20527,2204.0,2202.4,3.37851548]
[1625353160591,41.8092,2203.4,2202.5,16.592837]
[1625353161212,2.20527,2202.9,2202.8,2.20527]
[1625353163182,4.41054,2202.9,2202.8,2.20527]
[1625353166186,4.41054,2202.9,2202.8,18.807306]
[1625353167444,1.0,2203.9,2202.8,22.362606]
[1625353167543,1.0,2204.9,2202.8,22.362606]
[1625353167644,1.0,2204.9,2202.9,1.0]
[1625353167949,1.0,2204.9,2203.0,16.541827]
[1625353168046,1.0,2204.9,2203.5,50.7213]
[1625353168145,13.1404,2205.0,2203.5,50.7213]
[1625353168249,13.1404,2205.0,2203.5,54.2993]
[1625353168445,13.1404,2205.0,2203.6,16.469252]
[1625353169250,2.20527,2204.1,2204.0,2.20527]
[1625353169351,2.20527,2204.1,2204.0,4.98627]
[1625353169602,2.20527,2204.1,2204.0,21.557437]
[1625353171206,4.41054,2204.1,2204.0,21.557437]
[1625353171958,14.1404,2205.0,2204.0,21.557437]
[1625353172058,13.1404,2205.0,2204.0,21.557437]
[1625353172207,42.8211,2205.3,2204.0,21.557437]
[1625353173272,2.20527,2204.2,2204.0,21.557437]
[1625353178749,2.20527,2204.2,2204.0,19.352167]
[1625353181255,2.20527,2204.4,2204.0,19.352167]
[1625353183315,2.20527,2204.1,2204.0,19.352167]
[1625353194307,2.20527,2204.1,2204.0,2.781]
[1625353194407,2.20527,2204.1,2202.1,66.1881]
[1625353194507,2.20527,2204.1,2202.8,1.30082813]
[1625353195060,38.7893,2204.0,2203.1,16.351219]
[1625353195309,2.20527,2203.4,2203.3,2.20527]
[1625353195661,2.20527,2203.4,2203.3,18.555926]
[1625353199121,2.20527,2203.6,2203.3,18.555926]
[1625353199219,1.0,2204.5,2203.3,20.992026]
[1625353199320,2.20527,2204.5,2204.4,2.20527]
[1625353199470,2.20527,2204.5,2204.4,5.62747]
[1625353200070,2.20527,2204.5,2204.4,3.4222]
[1625353200971,2.20527,2204.5,2204.2,2.20527]
[1625353201282,2.20527,2204.5,2203.8,1.15]
[1625353201425,2.20527,2204.3,2203.8,3.35527]
[1625353201624,5.76777,2204.3,2203.8,1.15]
[1625353201773,10.76777,2204.3,2203.1,1.2985264]
[1625353202024,10.76777,2204.3,2202.9,4.759]
[1625353202025,5.76777,2204.3,2202.9,4.759]
[1625353202324,1.33854737,2204.2,2202.9,4.759]
[1625353202425,1.33854737,2204.2,2203.2,16.571523]
[1625353202426,46.0033,2203.9,2203.2,16.571523]
[1625353202625,46.0033,2203.9,2203.0,16.370193]
[1625353202728,46.0033,2203.9,2202.6,1.30058574]
[1625353202826,46.0033,2203.9,2202.8,16.434819]
[1625353202925,46.0033,2203.9,2203.3,16.528642]
[1625353203176,1.338349,2204.2,2203.3,16.528642]
[1625353203275,1.338349,2204.2,2202.7,16.469841]
[1625353203425,2.20527,2203.2,2203.0,2.20527]
[1625353203540,5.32437,2203.2,2203.0,2.20527]
[1625353203828,5.32437,2203.2,2203.1,16.505951]
[1625353204682,5.32437,2203.2,2203.0,2.20527]
[1625353205083,5.32437,2203.2,2202.8,2.20527]
[1625353205330,2.20527,2202.9,2202.5,2.20527]
[1625353206136,50.2437,2202.6,2202.3,2.20527]
[1625353206239,53.96,2202.6,2202.3,2.20527]
[1625353207346,4.41054,2202.4,2201.9,2.20527]
[1625353207747,4.41054,2202.4,2201.6,3.51012183]
[1625353208098,5.0,2202.3,2201.6,3.51012183]
[1625353208201,4.41054,2202.4,2201.6,2.20527]
[1625353208652,4.41054,2202.4,2201.2,1.30405025]
[1625353208952,4.41054,2202.4,2200.8,2.3056244]
[1625353209101,4.41054,2202.4,2200.8,1.3056244]
[1625353209207,9.41054,2202.4,2200.8,1.3056244]
[1625353209355,2.20527,2201.1,2201.0,2.20527]
[1625353209455,5.11397,2201.1,2201.0,2.20527]
[1625353209706,5.11397,2201.1,2201.0,18.642026]
[1625353210107,2.9087,2201.1,2201.0,18.642026]
[1625353210759,1.0,2202.4,2201.0,18.642026]
[1625353210859,14.9326,2202.5,2201.0,18.642026]
[1625353211312,19.9326,2202.5,2201.0,18.642026]
[1625353211412,2.20527,2201.6,2201.4,2.20527]
[1625353213012,5.76217,2201.6,2201.5,16.618308]
[1625353213214,5.76217,2201.6,2201.4,2.20527]
[1625353213416,2.20527,2201.5,2201.0,2.20527]
[1625353215372,2.20527,2201.1,2201.0,2.20527]
[1625353218628,46.08337,2201.1,2201.0,2.20527]
[1625353218778,46.08337,2201.1,2200.8,2.20527]
[1625353218876,46.08337,2201.1,2200.3,14.4715]
[1625353218978,46.08337,2201.1,2199.7,1.30806231]
[1625353219379,2.20527,2200.6,2200.5,2.20527]
[1625353219529,5.18217,2200.6,2200.5,2.20527]
[1625353220831,5.18217,2200.6,2200.5,18.721806]
[1625353221132,5.18217,2200.6,2200.5,2.20527]
[1625353221383,7.38744,2200.6,2200.5,18.650941]
[1625353222085,7.38744,2200.6,2200.5,2.20527]
[1625353225652,4.41054,2200.6,2200.5,2.20527]
[1625353225853,4.41054,2200.6,2200.5,18.633635]
[1625353227917,1.0,2201.7,2200.5,18.633635]
[1625353228021,1.0,2202.3,2200.5,18.633635]
[1625353228119,50.2437,2202.6,2200.5,18.633635]
[1625353228968,55.2437,2202.6,2200.5,18.633635]
[1625353229068,5.0,2202.4,2200.5,18.633635]
[1625353229422,2.20527,2201.6,2201.5,2.20527]
[1625353231475,4.41054,2201.6,2201.5,2.20527]
[1625353235130,4.41054,2201.6,2200.0,1.0]
[1625353235280,4.41054,2201.6,2199.3,50.2421]
[1625353235382,4.41054,2201.6,2199.4,1.0]
[1625353235484,2.20527,2201.1,2200.9,2.20527]
[1625353235585,5.49977,2201.1,2200.9,2.20527]
[1625353235784,5.49977,2201.1,2201.0,16.539248]
[1625353236757,3.2945,2201.1,2201.0,16.539248]
[1625353236857,2.20527,2201.6,2201.0,16.539248]
[1625353237308,1.0,2202.2,2201.0,16.539248]
[1625353237409,0.87623201,2203.6,2201.0,16.539248]
[1625353237509,2.20527,2202.9,2202.8,2.20527]
[1625353237660,2.20527,2202.9,2202.8,5.61567]
[1625353238058,2.15527,2202.9,2202.8,5.61567]
[1625353239059,2.15527,2202.9,2202.8,2.20527]
[1625353241521,5.33017,2202.9,2202.8,2.20527]
[1625353246031,2.15527,2202.9,2202.8,2.20527]
[1625353251340,2.15527,2202.9,2202.8,18.77147]
[1625353253695,2.15527,2202.9,2202.8,21.87987]
[1625353254446,2.15527,2202.9,2202.8,5.31367]
[1625353255096,2.15527,2202.9,2202.8,21.719567]
[1625353263081,5.28047,2202.9,2202.8,5.31367]
[1625353263187,5.28047,2202.9,2202.8,2.20527]
[1625353263282,5.28047,2202.9,2202.6,2.20527]
[1625353263632,45.6868,2202.7,2202.6,2.20527]
[1625353263732,47.89207,2202.7,2202.3,2.20527]
[1625353264682,2.20527,2202.7,2202.3,2.20527]
[1625353265183,7.20527,2202.7,2202.3,2.20527]
[1625353265384,2.20527,2202.7,2202.3,2.20527]
[1625353265689,2.20527,2202.4,2202.1,2.20527]
[1625353265785,5.18367,2202.4,2202.1,2.20527]
[1625353266487,5.18367,2202.4,2201.8,2.20527]
[1625353266836,10.18367,2202.4,2201.8,2.20527]
[1625353267189,5.18367,2202.4,2201.8,2.20527]
[1625353267687,4.41054,2201.9,2201.8,2.20527]
[1625353267787,7.06754,2201.9,2201.8,2.20527]
[1625353269593,12.06754,2201.9,2201.6,2.20527]
[1625353269692,12.06754,2201.9,2201.3,2.20527]
[1625353270140,54.8197,2201.6,2201.3,2.20527]
[1625353270443,54.8197,2201.6,2201.1,2.20527]
[1625353270543,54.8197,2201.6,2200.1,1.0]
[1625353270645,54.8197,2201.6,2200.0,15.6379]
[1625353271143,54.8197,2201.6,2200.1,16.544158]
[1625353271745,2.20527,2201.3,2201.2,2.20527]
[1625353271844,5.61967,2201.3,2201.2,2.20527]
[1625353273798,7.82494,2201.3,2201.2,2.20527]
[1625353275902,3.4144,2201.3,2201.2,2.20527]
[1625353277508,55.742,2201.7,2201.2,2.20527]
[1625353277817,4.41054,2201.3,2201.2,2.20527]
[1625353277957,7.96394,2201.3,2201.2,2.20527]
[1625353278521,7.96394,2201.3,2200.9,2.20527]
[1625353279776,2.20527,2201.0,2200.9,4.41054]
[1625353282285,2.20527,2201.0,2200.9,20.927022]
[1625353283235,2.20527,2201.0,2200.9,4.41054]
[1625353284037,2.20527,2201.0,2200.9,2.20527]
[1625353284138,7.20527,2201.0,2200.0,1.0]
[1625353284288,7.20527,2201.0,2199.5,1.0]
[1625353284438,7.20527,2201.0,2199.4,1.84451264]
[1625353284640,39.2425,2199.9,2199.4,1.84451264]
[1625353284791,42.1076,2199.9,2199.5,16.439091]
[1625353285092,42.1076,2199.9,2199.4,16.477564]
[1625353285341,42.1076,2199.9,2199.6,16.59314]
[1625353285642,42.1076,2199.9,2199.5,16.373413]
[1625353285841,4.41054,2199.6,2199.5,16.373413]
[1625353285996,4.41054,2199.6,2199.4,2.20527]
[1625353289752,2.20527,2199.6,2199.4,2.20527]
[1625353290054,2.20527,2200.0,2199.4,2.20527]
[1625353290256,2.20527,2200.0,2199.5,16.61065]
[1625353290354,40.77507,2200.0,2199.5,16.61065]
[1625353291856,2.20527,2199.6,2199.5,16.61065]
[1625353292007,5.06487,2199.6,2199.5,16.61065]
[1625353292371,5.06487,2199.6,2199.4,2.20527]
[1625353292771,10.06487,2199.6,2199.5,16.400361]
[1625353292873,5.06487,2199.6,2199.5,16.400361]
[1625353292973,5.06487,2199.6,2198.4,1.85211661]
[1625353293073,5.06487,2199.6,2198.3,2.64588087]
[1625353293074,5.06487,2199.6,2198.0,1.85390639]
[1625353293724,5.06487,2199.6,2198.1,16.637476]
[1625353293873,2.20527,2199.0,2198.9,2.20527]
[1625353294024,4.58447,2199.0,2198.9,2.20527]
[1625353296283,4.58447,2199.0,2198.5,1.15]
[1625353296883,4.58447,2199.0,2198.6,16.483022]
[1625353297032,2.3792,2199.0,2198.6,16.483022]
[1625353297286,2.20527,2199.3,2198.6,16.483022]
[1625353297934,2.20527,2199.3,2199.2,2.20527]
[1625353298036,2.20527,2199.3,2199.2,5.98237]
[1625353298185,2.20527,2199.3,2199.2,22.627402]
[1625353306760,2.6736,2199.4,2199.2,22.627402]
[1625353306861,14.1891,2200.5,2199.3,41.7313]
[1625353307210,14.1891,2200.5,2199.4,16.567371]
[1625353307460,1.0,2200.9,2199.4,16.567371]
[1625353307561,1.86406235,2201.9,2199.4,16.567371]
[1625353307664,1.86406235,2201.9,2199.5,1.0]
[1625353307813,15.1978,2201.8,2199.5,1.0]
[1625353308011,2.20527,2200.9,2200.8,4.54457]
[1625353308562,58.21837,2200.9,2200.8,4.54457]
[1625353309214,61.69347,2200.9,2200.8,2.20527]
[1625353309865,61.69347,2200.9,2200.5,2.20527]
[1625353310015,2.20527,2200.6,2200.1,2.20527]
[1625353311993,2.20527,2200.2,2200.1,2.20527]
[1625353312093,5.89067,2200.2,2200.1,2.20527]
[1625353312743,3.6854,2200.2,2200.1,2.20527]
[1625353313044,3.6854,2200.2,2200.1,18.786772]
[1625353313145,1.0,2201.1,2200.1,18.786772]
[1625353313244,1.0,2201.6,2200.1,18.786772]
[1625353313343,3.0485,2201.7,2200.1,18.786772]
[1625353313445,5.0,2201.6,2200.1,18.786772]
[1625353313594,85.2015,2201.8,2200.1,18.786772]
[1625353313996,2.20527,2200.9,2200.8,2.20527]
[1625353318611,7.20527,2200.9,2200.8,2.20527]
[1625353318712,7.20527,2200.9,2199.7,1.0]
[1625353318810,7.20527,2200.9,2199.6,14.3691]
[1625353319113,2.20527,2200.9,2199.6,14.3691]
[1625353319362,2.20527,2200.9,2199.7,16.460223]
[1625353320065,2.20527,2200.9,2200.6,2.20527]
[1625353322066,2.20527,2200.7,2200.6,2.20527]
[1625353329641,1.0,2201.6,2200.6,2.20527]
[1625353329752,0.8981,2203.1,2200.6,5.59897]
[1625353329845,1.0,2202.3,2200.6,5.59897]
[1625353329991,5.0,2202.2,2200.7,16.537873]
[1625353330092,17.40307,2201.8,2201.7,2.20527]
[1625353330394,2.20527,2201.8,2201.7,2.20527]
[1625353330995,2.20527,2201.8,2201.4,2.20527]
[1625353331093,5.42217,2201.8,2201.4,2.20527]
[1625353331645,5.42217,2201.8,2200.2,1.0]
[1625353331744,5.42217,2201.8,2199.4,2.5875]
[1625353332100,5.42217,2201.8,2201.2,2.20527]
[1625353332402,10.42217,2201.8,2201.2,2.20527]
[1625353333302,10.42217,2201.8,2201.0,2.20527]
[1625353333402,5.42217,2201.8,2201.0,2.20527]
[1625353334052,4.41054,2201.1,2201.0,2.20527]
[1625353334555,7.35884,2201.1,2201.0,2.20527]
[1625353338810,4.41054,2201.1,2201.0,2.20527]
[1625353338914,1.0,2202.0,2201.0,2.20527]
[1625353339064,5.0,2202.0,2201.0,2.20527]
[1625353339164,1.86492299,2202.2,2201.0,2.20527]
[1625353339667,1.86509431,2202.3,2201.0,2.20527]
[1625353340014,6.86509431,2202.3,2201.0,2.20527]
[1625353340115,2.20527,2201.6,2201.0,2.20527]
[1625353340619,5.47407,2201.6,2201.0,2.20527]
[1625353342086,2.20527,2201.1,2201.0,2.20527]
[1625353342882,5.15357,2201.1,2201.0,2.20527]
[1625353344142,7.35884,2201.1,2201.0,2.20527]
[1625353345844,7.35884,2201.1,2199.7,1.0]
[1625353345845,12.35884,2201.1,2199.7,1.0]
[1625353345947,12.35884,2201.1,2199.3,1.0]
[1625353346099,13.26264,2201.1,2199.3,1.0]
[1625353346200,2.20527,2200.0,2199.9,2.20527]
[1625353346299,5.89127,2200.0,2199.9,2.20527]
[1625353346901,5.89127,2200.0,2198.8,15.5324]
[1625353347505,5.89127,2200.0,2198.9,16.372247]
[1625353348155,5.89127,2200.0,2199.8,2.20527]
[1625353348555,5.89127,2200.0,2199.6,2.20527]
[1625353349157,5.89127,2200.0,2199.7,16.612716]
[1625353350161,2.20527,2199.9,2199.7,16.612716]
[1625353351412,2.20527,2199.9,2199.6,4.41054]
[1625353351611,2.20527,2199.9,2198.8,15.5324]
[1625353351912,5.0,2199.8,2198.8,15.5324]
[1625353352268,4.76537,2199.3,2199.1,2.20527]
[1625353353414,2.20527,2199.3,2199.1,2.20527]
[1625353353616,2.20527,2199.3,2199.2,43.3815]
[1625353353766,2.20527,2199.3,2199.2,60.017318]
[1625353354319,15.2623,2200.4,2199.2,60.017318]
[1625353354466,14.2623,2200.4,2199.2,60.017318]
[1625353355219,14.2623,2200.4,2199.2,16.635818]
[1625353355773,14.2623,2200.4,2199.2,66.116818]
[1625353355869,14.2623,2200.4,2199.2,69.506318]
[1625353356221,2.20527,2199.8,2199.6,2.20527]
[1625353357170,2.20527,2199.8,2199.7,16.457934]
[1625353357822,2.20527,2199.8,2199.6,2.20527]
[1625353357924,2.20527,2199.8,2199.1,2.20527]
[1625353358024,5.93397,2199.8,2199.1,2.20527]
[1625353358226,2.20527,2199.5,2199.1,4.41054]
[1625353360282,4.62807,2199.2,2199.1,4.41054]
[1625353361782,9.62807,2199.2,2199.1,4.41054]
[1625353361883,4.62807,2199.2,2199.1,4.41054]
[1625353362032,58.75717,2199.2,2199.1,4.41054]
[1625353362284,58.75717,2199.2,2199.1,2.20527]
[1625353362536,4.62807,2199.2,2199.1,2.20527]
[1625353369557,2.4228,2199.2,2199.1,2.20527]
[1625353369657,2.20527,2199.5,2199.1,2.20527]
[1625353370309,2.20527,2199.5,2199.4,2.20527]
[1625353371671,7.20527,2199.5,2199.4,2.20527]
[1625353371927,7.20527,2199.5,2199.1,2.20527]
[1625353372030,10.79717,2199.5,2199.1,2.20527]
[1625353372127,10.79717,2199.5,2197.8,16.15771482]
[1625353372329,2.20527,2198.7,2198.6,2.20527]
[1625353372429,5.56927,2198.7,2198.6,2.20527]
[1625353374333,7.77454,2198.7,2198.6,2.20527]
[1625353386499,12.77454,2198.7,2198.6,2.20527]
[1625353386845,12.77454,2198.7,2196.9,15.9136]
[1625353386946,13.77454,2198.7,2196.9,14.9136]
[1625353387556,13.77454,2198.7,2197.0,16.511683]
[1625353387662,39.5978,2198.6,2197.0,16.511683]
[1625353387767,5.0,2198.5,2197.0,16.511683]
[1625353388413,2.20527,2197.7,2197.6,2.20527]
[1625353388512,5.36387,2197.7,2197.6,2.20527]
[1625353390417,7.56914,2197.7,2197.6,2.20527]
[1625353393328,7.56914,2197.7,2197.6,58.46797]
[1625353393979,7.56914,2197.7,2197.6,75.087989]
[1625353394378,7.56914,2197.7,2197.6,18.825289]
[1625353398334,3.1586,2197.7,2197.6,18.825289]
[1625353398435,1.0,2198.6,2197.6,18.825289]
[1625353398534,2.20527,2198.5,2198.4,2.20527]
[1625353399439,1.86719687,2200.1,2198.4,52.21397]
[1625353399590,14.6115,2200.0,2198.4,55.86537]
[1625353400089,14.6115,2200.0,2198.4,5.85667]
[1625353400490,2.20527,2199.0,2198.9,2.20527]
[1625353402524,4.41054,2199.0,2198.9,2.20527]
[1625353403274,4.41054,2199.0,2198.4,2.20527]
[1625353404576,2.20527,2198.5,2198.4,2.20527]
[1625353405478,2.20527,2198.5,2198.4,41.64267]
[1625353408738,2.20527,2198.5,2198.4,58.071992]
[1625353414199,2.20527,2198.5,2198.4,18.634592]
[1625353414401,2.20527,2198.5,2198.4,2.20527]
[1625353415608,2.20527,2198.5,2198.4,43.82527]
[1625353416011,2.20527,2198.5,2198.4,2.20527]
[1625353417217,2.20527,2198.5,2198.4,49.42877]
[1625353417722,2.20527,2198.5,2198.4,2.20527]
[1625353418822,2.20527,2198.5,2198.4,52.72987]
[1625353419577,2.20527,2198.5,2198.4,2.20527]
[1625353420277,2.20527,2198.5,2198.4,52.72527]
[1625353420977,2.20527,2198.5,2198.4,2.20527]
[1625353427186,2.20527,2198.5,2198.4,18.598201]
[1625353432955,5.79747,2198.5,2198.4,18.598201]
[1625353433050,5.79747,2198.5,2198.4,16.392931]
[1625353434006,2.20527,2199.0,2198.4,16.392931]
[1625353434108,2.408,2199.4,2198.4,16.392931]
[1625353434209,1.8752241,2199.6,2198.4,16.392931]
[1625353434358,1.87628016,2199.4,2198.4,16.392931]
[1625353434563,1.87628016,2199.4,2199.3,49.3008]
[1625353434667,2.20527,2199.5,2199.4,2.20527]
[1625353436729,4.41054,2199.5,2199.4,2.20527]
[1625353439390,4.41054,2199.5,2198.3,16.5579]
[1625353439493,4.41054,2199.5,2198.3,15.5579]
[1625353439742,4.56062455,2199.4,2198.3,15.5579]
[1625353440090,40.0247,2199.0,2198.3,15.5579]
[1625353440389,40.0247,2199.0,2197.4,6.60222179]
[1625353440590,1.0,2199.1,2197.4,6.60222179]
[1625353440692,2.20527,2198.6,2198.5,2.20527]
[1625353441241,4.67537,2198.6,2198.5,2.20527]
[1625353442691,6.88064,2198.6,2198.5,2.20527]
[1625353449129,6.88064,2198.6,2198.3,2.20527]
[1625353449231,6.88064,2198.6,2197.9,1.15]
[1625353449332,6.88064,2198.6,2197.6,1.83909365]
[1625353449734,1.88027177,2198.5,2197.1,1.84125312]
[1625353449982,1.88027177,2198.5,2197.2,0.13485471]
[1625353450132,6.88064,2198.6,2197.3,1.83997952]
[1625353450232,6.88064,2198.6,2197.6,1.15]
[1625353450332,6.88064,2198.6,2198.1,55.9025]
[1625353450735,6.88064,2198.6,2198.4,2.20527]
[1625353450736,4.67537,2198.6,2198.4,2.20527]
[1625353452087,2.4701,2198.6,2198.4,2.20527]
[1625353452186,1.88011643,2199.0,2198.4,2.20527]
[1625353452437,1.88011643,2199.0,2198.5,16.417045]
[1625353452738,1.88006203,2199.1,2198.5,16.417045]
[1625353452886,4.08533203,2199.1,2198.9,4.41054]
[1625353453991,2.20527,2199.1,2199.0,16.556595]
[1625353454094,2.20527,2199.1,2199.0,19.329095]
[1625353455497,1.87994851,2199.5,2199.0,19.329095]
[1625353455703,1.879819,2199.7,2199.0,19.329095]
[1625353456154,1.87971549,2199.9,2199.0,19.329095]
[1625353456250,1.87971549,2199.9,2199.6,54.5247]
[1625353456550,1.87971549,2199.9,2199.7,16.536917]
[1625353456802,1.87971549,2199.9,2199.8,4.41054]
[1625353457551,1.87971549,2199.9,2199.8,20.878363]
[1625353457905,3.49090019,2200.2,2199.8,20.878363]
[1625353457906,1.87911547,2200.1,2199.8,20.878363]
[1625353458405,1.87890008,2200.3,2199.8,20.878363]
[1625353458857,1.87890008,2200.3,2200.2,5.54617]
[1625353460962,8.808e-05,2200.4,2200.2,5.54617]
[1625353461486,8.808e-05,2200.4,2200.3,16.568608]
[1625353461688,3.48824524,2201.1,2200.3,16.568608]
[1625353461788,3.48824524,2201.1,2200.5,48.6482]
[1625353462038,3.48824524,2201.1,2200.6,16.36482]
[1625353462140,3.48543346,2201.3,2200.7,1.15]
[1625353462390,3.48543346,2201.3,2200.8,16.608071]
[1625353462889,3.48543346,2201.3,2201.2,4.41054]